Workbook

Sheet Budget for ASV 2013-14
B3: Door Step School & Asha Silicon Valley
B4: Educational Activity Center
B5: Estimated Budget (10 Centers) April 2013-March 2014
B6: Sr. No. | C6: Particulars | D6: Rate/ Cost per Month | E6: No. of Months | F6: No. of Persons | G6: Total in Rs.
B7: I | C7: MANAGEMENT COST
B8: 1 | C8: Management Salary | D8: 6958 | E8: 12 | G8: =D8*E8 -> 83496
C9: Total of I | G9: =G8 -> 83496
B10: II | C10: STAFF WELFARE
B11: 1 | C11: Mediclaim of staff (Part Payment)
C12: Coordinators | D12: =900*50% -> 450 | F12: 1 | G12: =D12*F12 -> 450
C13: Supervisor | D13: =900*50% -> 450 | F13: 2 | G13: =D13*F13 -> 900
C14: Teachers | D14: =900*75% -> 675 | F14: 24 | G14: =D14*F14 -> 16200
B15: 2 | C15: Staff Event | D15: 300 | F15: 28 | G15: =D15*F15 -> 8400 | H15: Associate Director (1) + Coordinator (1) + Supervisor (2) + Teachers (24) = 28 Persons
C16: Total of IV | G16: =G12+G13+G14+G15 -> 25950
B17: III | C17: PROGRAM EXPENSES
B18: 1 | C18: Teachers Salaries | D18: 5056 | E18: 12 | F18: 24 | G18: =D18*E18*F18 -> 1456128 | H18: Basic + PF (12%) + Travel Allowance (13%) - Details in next sheet
B19: 2 | C19: Supervisors Salaries | D19: 9032 | E19: 12 | F19: 2 | G19: =D19*E19*F19 -> 216768 | H19: Basic + PF Rs. 780 + Travel Allowance (18%) - Details in next sheet
B20: 3 | C20: Coordinator Salaries | D20: ='Salary Break-up 13-14'!D14 -> 13294 | E20: 12 | F20: 1 | G20: =D20*E20*F20 -> 159528 | H20: Basic +PF Rs. 780 + Travel Allowance (18%) - Details in next sheet
B21: 4 | C21: Teaching & Educational Material | D21: 20 | E21: 12 | F21: 500 | G21: =D21*E21*F21 -> 120000
B22: 5 | C22: Picnic/Events | D22: 50 | F22: 500 | G22: =D22*F22 -> 25000
B23: 6 | C23: Support Activities/ Miscellaneous | D23: 20 | F23: 500 | G23: =D23*F23 -> 10000
B24: 7 | C24: Transport | D24: 275 | E24: 10 | F24: 100 | G24: =D24*E24*F24 -> 275000
C25: Total - III | G25: =SUM(G18:G24) -> 2262424
C26: Total of I+ II+III | G26: =G9+G16+G25 -> 2371870
B27: IV | C27: ADMINISTRATIVE EXPENSES
B28: 1 | C28: Telephone, stationary, postage, admin staff and other organizational costs @ approx 10% of Total of I+ II+III | G28: =G26*10% -> 237187
C29: Grand Total I+ II+III+IV( Rounded) | G29: =CEILING(G26+G28,100) -> 2609100
C30: Funding by Builders (22% of total cost) | G30: =G29*22% -> 574002
C31: Funding Requested ( 78% of total cost) | G31: =CEILING(G29-G30,1000) -> 2036000
B33: Funding Per Site / Month ( rounded) | F33: Rs. | G33: =G29/10/12 -> 21742.5
B34: Funding Per Child Per Month | F34: Rs. | G34: =G33/50 -> 434.85
B38: Notes:
B39: a. | C39: Transport Cost: | D39: School transport remains to be pivotal activity for school going children of the construction sites. All our efforts of convincing parents and enrolling children into schools sometimes seem futile if we can not provide them transport. Without a safe and regular school transport facility, the children of the construction sites find it difficult to get to the schools and then they eventually drop out.
B40: b. | C40: Staff Event: | D40: We organize Annual Day program for staff once a year. In addition to this we also organize cluster level review meetings for our entire project to access the progress of each project. Staff event budget head cost include the cost involved for this activity.
B41: c. | C41: Support Activities/ Miscellaneous: | D41: When we run classes we provide some material which is necessary to the children of that class e.g. a toilet is not provided by the builder, we need to provide a mobile toilet for the children and teachers on the construction sites, Housekeeping material etc.
B42: d. | C42: Picnic and Events: | D42: We organize picnic at once in year, We also organise events like Diwali, Makarsankrat, Republic Day, Independence Day etc.
B43: e. | C43: No. of children: | D43: Assumption - Per site 50 children

Sheet Salary Break-up 13-14
B10: Year | C10: Particular | D10: Co-ordinator | E10: Supervisor | F10: Teacher
B11: April 13- May 2014 | C11: Basic Salary Per Month | D11: 10605.08475 | E11: 6993 | F11: 4045
C12: PF @12% of Basic Salary or Rs. 780 which ever is less | D12: 780 | E12: 780 | F12: =F11*12% -> 485.4
C13: Travelling | D13: =D11*18% -> 1908.915254 | E13: =E11*18% -> 1258.74 | F13: =F11*13% -> 525.85
C14: Total (Salary + Allowances) Per Month | D14: =SUM(D11:D13) -> 13294 | E14: =SUM(E11:E13) -> 9031.74 | F14: =SUM(F11:F13) -> 5056.25
